Cogmind - Beta 17 @@@ ROGUE MODE // 2026.07.05 @ 15:17:17 Player: arcadio rl Result: Destroyed by as-04342 with Assembled Rifle Performance ------------- Evolutions (0) 0 Regions Visited (2) 400 Robots Destroyed (13) 65 Value Destroyed (320) 320 Prototype IDs (2) 40 Alien Tech Used (0) 0 Bonus (0) 0 TOTAL SCORE: 825 Bonus ------- None Cogmind --------- Core Integrity 0/250 Matter 256/300 Energy 100/100 System Corruption 1% Temperature Cool (0) Movement Core (50) Location -10/Mines Parts ------- > --- POWER (1) -------- (None) > --- PROPULSION (2) --- (None) > --- UTILITY (2) ------ Signal Interpreter Seismic Detector > --- WEAPON (2) ------- (None) > --- INVENTORY (5) ---- Ion Engine Power Shielding Utility Shielding EM Pulse Gun Mining Laser Peak State ------------ > --- POWER ------------ Ion Engine > --- PROPULSION ------- Wheel Wheel > --- UTILITY ---------- High-capacity Storage Unit Seismic Detector > --- WEAPON ----------- Medium Laser Small Laser > --- INVENTORY -------- Ion Engine Light Treads Light Treads Light Treads Aluminum Leg Wheel Compact Wheel Large Storage Unit Signal Interpreter Seismic Detector ECM Suite Power Shielding Utility Shielding Utility Shielding Tractor Beam EM Pulse Gun Grenade Launcher Datajack Datajack Mining Laser [Rating: 9] Favorites ----------- Power Ion Engine Engine Ion Engine Propulsion Wheel Treads Light Treads Wheel Wheel Utility High-capacity Storage Unit Device Seismic Detector Storage High-capacity Storage Unit Processor Signal Interpreter Protection Power Shielding Weapon Medium Laser Energy Gun Medium Laser Ballistic Gun Light Assault Rifle Launcher Grenade Launcher Build | -11 -10 -10 ------- Run | Yrd Mat Min Slots Evolved . | . . . Power . | . . . Propulsion . | . . . Utility . | . . . Weapon . | . . . Parts Attached 22 | 7 12 3 Power 1 | 1 . . Engine 1 | 1 . . Core . | . . . Reactor . | . . . Propulsion 9 | 2 5 2 Treads 3 | . 3 . Leg . | . . . Wheel 6 | 2 2 2 Hover . | . . . Flight . | . . . Utility 6 | 1 4 1 Device 2 | . 2 . Storage 2 | 1 1 . Processor 1 | . . 1 Hackware . | . . . Protection 1 | . 1 . Artifact . | . . . Weapon 6 | 3 3 . Energy Gun 4 | 2 2 . Energy Cannon . | . . . Ballistic Gun 1 | 1 . . Ballistic Cannon . | . . . Launcher 1 | . 1 . Special Weapon . | . . . Impact Weapon . | . . . Slashing Weapon . | . . . Piercing Weapon . | . . . Special Melee Weapon . | . . . Unidentified Prototypes . | . . . Parts Lost 9 | . 3 6 Power 1 | . . 1 Propulsion 4 | . 1 3 Utility . | . . . Weapon 4 | . 2 2 Highest Loss Streak 6 | . 3 6 To Critical Strikes . | . . . Average Backups 12 | 2 12 19 Power . | . 1 1 Propulsion 4 | 2 4 5 Utility 4 | . 4 7 Weapon 1 | . 1 2 Tool/Special . | . . . Unused Backups 11 | . 1 10 Power 1 | . . 1 Propulsion 3 | . 1 2 Utility 5 | . . 5 Weapon . | . . . Tool/Special 2 | . . 2 Average Slot Usage (%) 97 | . 98 92 Engine 13 | . 14 13 Treads 4 | . 5 . Wheel 22 | . 22 25 Device 4 | . 2 14 Storage 13 | . 14 12 Protection 8 | . 10 . Energy Gun 20 | . 19 25 Ballistic Gun 7 | . 8 . Peak Build Rating 9 | 6 9 9 Average Rating 7 | 3 7 8 On Entrance 5 | . 6 9 Avg Prop Armor Cover (%) . | . . . Naked Turns . | . . . Heaviest Build 51 | 13 51 49 Greatest Support 40 | 26 40 26 Greatest Overweight (x) 4 | . 4 2 Average Overweight (x) 1 | . 1 1 Largest Inventory Capacity 20 | 8 20 20 Average Capacity 17 | 6 17 18 Most Carried 20 | 6 20 20 Average Carried 12 | 3 12 18 Final Capacity 20 | 8 20 5 Final Carried 20 | 6 20 5 Class Distribution -------------------- 100% | Mutant Dominant Class ---------------- Mutant | -10/Materials Mutant | -10/Mines Resources | -11 -10 -10 ----------- Run | Yrd Mat Min Matter Collected 601 | 177 412 12 Remotely 102 | . 102 . Salvage Created 402 | . 392 10 Parts 21 | . 18 3 Haulers Intercepted 2 | . 2 . Recyclers Shooed . | . . . Parts Field Recycled . | . . . Retrieved Matter . | . . . Parts Self-Destructed . | . . . Prevented . | . . . Parts Restored . | . . . Kills | -11 -10 -10 ------- Run | Yrd Mat Min Combat Hostiles Destroyed 10 | . 9 1 Guns 7 | . 6 1 AOE 3 | . 3 . Classes Destroyed 4 | . 4 . Hauler 2 | . 2 . Watcher 1 | . 1 . Swarmer 4 | . 3 1 Grunt 6 | . 6 . Best Kill Streak 3 | . 3 1 Combat Bots Only 2 | . 2 1 Max Kills in Single Turn 1 | . 1 1 Gunslinging . | . . . Exploded 1 | . 1 . Melee . | . . . Uniques/NPCs Destroyed . | . . . Combat | -11 -10 -10 -------- Run | Yrd Mat Min Hostile Shots Fired 102 | . 52 50 Missed 30 | . 15 15 Hits 72 | . 37 35 Melee 1 | . . 1 Projectile 71 | . 37 34 Critical Strikes 1 | . . 1 Damage Taken 1067 | . 633 434 Core 255 | . 76 179 Absorbed by Shields . | . . . Redirected to Shielding 4 | . 4 . Regen/Repaired (Parts) 121 | . 121 . Core Remaining (%) 100 | 100 . . Volleys Fired 47 | . 42 5 Largest 2 | . 2 2 Hottest 100 | . 100 90 Shots Fired 85 | . 75 10 Gun 83 | . 73 10 Cannon . | . . . Launcher 2 | . 2 . Special . | . . . Kinetic 18 | . 18 . Thermal 64 | . 54 10 Explosive 2 | . 2 . Electromagnetic 1 | . 1 . Robot Hit Streak 7 | . 7 5 Robot Miss Streak 4 | . 4 3 Penetration Max . | . . . Secondary Targets 1 | . 1 . Max Gunslinging Chain 1 | . 1 . Shots Hit Robots 51 | . 46 5 Core Hits 22 | . 20 2 Critical Kills . | . . . Critical Parts Destroyed 1 | . 1 . Critical Strikes 2 | . 1 1 Burn 1 | . . 1 Destroy 1 | . 1 . Melee Attacks . | . . . Impact . | . . . Slashing . | . . . Piercing . | . . . Sneak Attacks . | . . . Combat Hostiles . | . . . Follow-up Attacks . | . . . Damage Inflicted 907 | . 846 61 Guns 623 | . 562 61 Cannons . | . . . Explosions 284 | . 284 . Melee . | . . . Ramming . | . . . Kinetic 74 | . 74 . Thermal 533 | . 472 61 Explosive 284 | . 284 . Electromagnetic 16 | . 16 . Impact . | . . . Slashing . | . . . Piercing . | . . . Highest Corruption 1 | . 1 1 Average Corruption 1 | . 1 1 Corruption Purged . | . . . Corruption Blocked . | . . . Effects 7 | . 5 2 Message Errors 3 | . 2 1 Matter Fused 2 | . 1 1 Heat Flow Errors 2 | . 2 . Overload Shots . | . . . Overflow Damage 5 | . 5 . Projectiles . | . . . Explosions 5 | . 5 . Melee . | . . . Knockbacks . | . . . Impact . | . . . Kinetic . | . . . Secondary . | . . . Self-Inflicted Damage 174 | . 174 . Shots 2 | . 2 . Rammed . | . . . Targets Rammed . | . . . Kicked . | . . . Crushed . | . . . Highest Temperature 391 | . 391 90 Average Temperature 116 | . 125 41 Received Heat Transfer 246 | . 246 . Effects 6 | . 6 . Shutdowns 2 | . 2 . Interference 1 | . 1 . Matter Decay 3 | . 3 . Siege Activations . | . . . Martial Activations . | . . . Shielding Activations . | . . . Robots Disrupted . | . . . Combat Hostiles . | . . . Robots Corrupted . | . . . Combat Hostiles . | . . . Parts Fried . | . . . Impact Corruptions . | . . . Robots Melted . | . . . Combat Hostiles . | . . . Parts Melted 4 | . 4 . Heat Transferred 1593 | . 1358 235 Parts Sabotaged . | . . . Parts Stolen . | . . . Parts Stripped . | . . . Power Chain Reactions . | . . . Alert | -11 -10 -10 ------- Run | Yrd Mat Min Maximum Alert Level . | . . . Low Security (%) 100 | 100 100 100 Level 1 . | . . . Level 2 . | . . . Level 3 . | . . . Level 4 . | . . . Level 5 . | . . . High Security . | . . . Max Security . | . . . Peak Influence 107 | . 107 30 Initial . | . . . Average 28 | . 34 3 Influence Increases 423 | . 378 45 Destroy 0b10 Robot/C 200 | . 180 20 Destroy 0b10 Robot/NC 15 | . 15 . Destroy Leader 56 | . 46 10 Successful Hack 45 | . 45 . Disable Machine 45 | . 45 . Destroy Structure 32 | . 32 . Lose Combat Pursuer 30 | . 15 15 Influence Decreases 423 | . 378 45 Time Decay 368 | . 348 20 Lost Part 55 | . 30 25 Squads Dispatched 1 | . 1 . Investigation . | . . . Extermination . | . . . Reinforcement 1 | . 1 . Assault . | . . . Garrison . | . . . Intercept . | . . . Searches Triggered . | . . . Construction Impeded . | . . . Haulers Reinforced . | . . . Active Scanning Responses . | . . . Cargo Convoy Interrupts . | . . . Stealth | -11 -10 -10 --------- Run | Yrd Mat Min Distress Signals 2 | . 2 . Communications Jammed . | . . . Distress Signals . | . . . Times Spotted 28 | . 19 9 Peak Tracking Total 6 | . 4 6 Tactical Retreats 3 | . 1 2 Traps | -11 -10 -10 ------- Run | Yrd Mat Min Traps Triggered 2 | . 2 . Indirectly . | . . . Trap Hack Attempts . | . . . Triggered . | . . . Disarmed . | . . . Reprogrammed . | . . . Reused . | . . . Traps Extracted . | . . . Installed . | . . . Triggered . | . . . Machines | -11 -10 -10 ---------- Run | Yrd Mat Min Machines Disabled 3 | . 3 . Max in Single Turn 2 | . 2 . Machines Repaired . | . . . Machines Dismantled . | . . . Machines Sabotaged . | . . . Overloaded Fab Kills . | . . . Hacking | -11 -10 -10 --------- Run | Yrd Mat Min Machines Accessed 10 | . 10 . Terminals 7 | . 7 . Fabricators . | . . . Repair Stations 1 | . 1 . Recycling Units 2 | . 2 . Scanalyzers . | . . . Garrison Access . | . . . Total Hacks 35 | . 35 . Successful 22 | . 22 . Failed 13 | . 13 . Catastrophic 1 | . 1 . Database Lockouts . | . . . Manual 20 | . 20 . Terminals 27 | . 27 . Fabricators . | . . . Repair Stations 3 | . 3 . Recycling Units 5 | . 5 . Scanalyzers . | . . . Garrison Access . | . . . Terminal Hacks 10 | . 10 . Robot Analysis 4 | . 4 . Prototype ID Bank 1 | . 1 . Terminal Index 1 | . 1 . Scanalyzer Index 1 | . 1 . Locate Traps 1 | . 1 . Patrol Status 1 | . 1 . Transport Status 1 | . 1 . Fabricator Hacks . | . . . Repair Station Hacks 2 | . 2 . Scan Component 1 | . 1 . Repair 1 | . 1 . Recycling Unit Hacks 3 | . 3 . Report Inventory 2 | . 2 . Retrieve Components 1 | . 1 . Scanalyzer . | . . . Garrison Access Hacks . | . . . Unauthorized Hacks 7 | . 7 . Terminals 6 | . 6 . Track 1 | . 1 . Assimilate 2 | . 2 . Botnet 2 | . 2 . Operators 1 | . 1 . Fabricators . | . . . Repair Stations 1 | . 1 . Mechanics 1 | . 1 . Recycling Units . | . . . Scanalyzers . | . . . Garrison Access . | . . . Data Cores Recovered . | . . . Used . | . . . Hacking Detections 8 | . 8 . Full Trace Events . | . . . Feedback Events . | . . . Feedback Blocked . | . . . Robot Schematics Acquired . | . . . Robots Built . | . . . Authchips . | . . . Time . | . . . Total Robot Build Rating . | . . . Part Schematics Acquired . | . . . Parts Built . | . . . Authchips . | . . . Time . | . . . Total Part Build Rating . | . . . Part Studies Acquired . | . . . Parts Repaired 1 | . 1 . Time 26 | . 26 . Parts Recycled . | . . . Recycled Matter . | . . . Retrieved Matter . | . . . Retrieved Components 3 | . 3 . Parts Scanalyzed . | . . . Part Schematics Acquired . | . . . Parts Damaged . | . . . Bothacking | -11 -10 -10 ------------ Run | Yrd Mat Min Used RIF Installer . | . . . Robots Hacked . | . . . Non-combat . | . . . Combat . | . . . Robot Hacks Applied . | . . . Relay Couplers Released . | . . . Fabnet Peak Effective % . | . . . Robots Rewired . | . . . Allies Hacked . | . . . Hacks Repelled . | . . . Allies | -11 -10 -10 -------- Run | Yrd Mat Min Total Allies 2 | . 2 . Largest Group 2 | . 2 2 Highest-Rated Group 20 | . 20 20 Highest-Rated Ally 10 | . 10 10 Total Orders . | . . . Ally Attacks . | . . . Total Damage . | . . . Kills . | . . . Allies Corrupted . | . . . Allies Melted . | . . . Intel | -11 -10 -10 ------- Run | Yrd Mat Min Active Infowar (turns) 397 | . 211 186 Seismic 397 | . 211 186 Robot Analysis Total 4 | . 4 . Derelict Logs Recovered . | . . . Drone Launches . | . . . Drone Recoveries . | . . . Exploration | -11 -10 -10 ------------- Run | Yrd Mat Min Turns Passed 1413 | 62 1165 186 Spaces Moved 1017 | 51 815 151 Core 12 | 2 . 10 Treads 80 | . 80 . Legs . | . . . Wheels 925 | 49 735 141 Hover . | . . . Flight . | . . . Fastest Speed 50 | 50 80 50 Average Speed 110 | 89 113 103 Slowest Speed 240 | 100 240 110 Overloaded Moves . | . . . Propulsion Burnouts . | . . . Robots Hopped . | . . . Potential Cave-ins . | . . . Cave-ins Triggered . | . . . Exploration Rate (%) 40 | 3 98 20 Regions Visited 2 Branch Regions 1 Pre-discovered Areas . | . . . Known Exits Taken . | . . . Unknown Exits Taken 2 | 1 1 . Scrap Searched . | . . . Spaces Dug . | . . . Terrain Destroyed 27 | . 27 . Melee . | . . . Projectile . | . . . AOE 27 | . 27 . Terrain Rammed . | . . . Walls Destroyed . | . . . Machines Disabled . | . . . Actions | -11 -10 -10 --------- Run | Yrd Mat Min Total 1214 | 64 980 170 Wait 86 | . 77 9 Move 1015 | 50 814 151 Hop . | . . . Pick Up 23 | 6 17 . Fast Attach 11 | 6 4 1 Attach 7 | 1 4 2 Detach 3 | 1 2 . Swap 16 | . 16 . Drop 6 | . 4 2 Fire 47 | . 42 5 Melee . | . . . Ram . | . . . Kick . | . . . Crush . | . . . Escape Stasis . | . . . Rewire . | . . . Trap . | . . . Miscellaneous . | . . . Route ------- -11/Scrapyard -10/Materials (discovered 6 exits: [*Mat x3] / [*Min x2] / [*Sub]) -10/Mines History --------- Turn | Location | Event 7 | -11/Scrapyard | Discovered new exit (range 15) 63 | -11/Scrapyard | Entered Materials 323 | -10/Materials | Build established: Mutant 327 | -10/Materials | Discovered new exit (range 8) 412 | -10/Materials | Repaired Lgt. Treads 552 | -10/Materials | Discovered new exit (range 3) 603 | -10/Materials | Discovered new exit (range 6) 822 | -10/Materials | Discovered new exit (range 8) 901 | -10/Materials | Lost 3 parts (1n2w) 1022 | -10/Materials | Discovered new exit (range 5) 1078 | -10/Materials | Discovered new exit (range 11) 1228 | -10/Materials | Entered Mines 1228 | -10/Mines | Accompanied by 2 allies 1299 | -10/Mines | Assembled infested the area 1378 | -10/Mines | Core integrity fell below 50% 1404 | -10/Mines | Core integrity fell below 20% 1414 | -10/Mines | Destroyed by as-04342 with Assembled Rifle Last Messages --------------- 01255_ 74-NM7(g) suffers critical hit (Destroy). 01260_ 74-NM7(g): "Mission, incomplete...*fzzt*" 01260_ 74-NM7(g) destroyed. 01299_ ALERT: Infestation in the mines, dispatching Demolisher response squad. 01299_ T-07 Excavator destroyed. 01312_ System corrupted: Matter fused (-5). 01345_ S-10 Pest: "SECOND INTRUDER APPROACHING. ELIMINATE." 01363_ S-10 Pest destroyed. 01374_ as-00050 suffers critical hit (Burn). 01379_ Wheel destroyed. 01393_ Sml. Laser destroyed. 01397_ Com. Wheel destroyed. 01398_ Med. Laser destroyed. 01398_ Dropped Hcp. Storage Unit. 01400_ Acquired Signal Interpreter. 01401_ Ion Engine destroyed. 01408_ Dropped Wheel. 01410_ Acquired 12 matter. Map ----- +----------------------------------------------------+ | ???????# =#????# #???????????????????????????????? | | ???????# #????# #???????????????????????????????? | | ???????# ##???# #???????????????????????????????? | | ???????# ##??# #???????????????????????????????? | | ???????# #??# #?#####?????????????????????????? | | ???????# #??# ### ##????????????????????????? | | ??????## #??# ## =!##???????????????????????? | | ?????## ##??# =!//!!####????????????????????? | | ?????# ##??# %*]!== #????????????????????? | | ?????# #### ## ##!= #????????????????????? | | ?????## ## ###### ##???????????????????? | | ??????### ##???# #???????????????????? | | ????????### """ ##??## #???????????????????? | | ??????????## """ #???# #???????????????????? | | ???????????## """ #???# #???????????????????? | | ????????????## ##???#= #???????????????????? | | ?????????????## ####????# #???????????????????? | | ??????????????#####???????#a #???????????????????? | | ???????????????????????#### =#???????????????????? | | ??????????????????????## #aa#???????????????????? | | ?????????????????????## /%*#???????????????????? | | ?????????????????????# = ##??????????????????? | | ?????????????????????# a ##?????????????????? | | ?????????????????????## #?????????????????? | | ??????????????????????## #?????????????????? | | ???????????????????????##@ ##?????????????????? | | ????????????????????????## #??????????????????? | | ?????????????????????????## #??????????????????? | | ??????????????????????????# a #?????????????????? | | ??????????????????????????# #?????????????????? | | ??????????????????????????# *#?????????????????? | | ??????????????????????????# =a#?????????????????? | | ??????????????????????????# !%!=?????????????????? | | ??????????????????????????## *!%#????????????????? | | ???????????????????????????# = #????????????????? | | ???????????????????????????? ????????????????? | | ???????????????????????????? ???????????????? | | ???????????????????????????? ???????????????? | | ???????????????????????????? ???????????????? | | ???????????????????????????? ### #??????????????? | | ????????????????????????????#???#????????????????? | | ?????????????????????????????????????????????????? | | ?????????????????????????????????????????????????? | | ?????????????????????????????????????????????????? | | ?????????????????????????????????????????????????? | | ?????????????????????????????????????????????????? | | ?????????????????????????????????????????????????? | | ?????????????????????????????????????????????????? | | ?????????????????????????????????????????????????? | | ?????????????????????????????????????????????????? | +----------------------------------------------------+ Best States ------------- Heat Dissipation 25 Energy Generation 10 Energy Capacity 250 Matter Stores 300 Matter Capacity 300 Sight Range 16 Terrain Scan Density 10 Power Shielding 33 Evasion (%) 50 Recoil Reduction 2 Item Schematics ----------------- None Robot Schematics ------------------ None Fabricated ------------ Nothing Repaired ---------- Lgt. Treads | 13% | -10/Materials Studied --------- None Alien Tech Used ----------------- None Achievements -------------- None Challenges ------------ None Game ------ Seed ArchitectRelayEngine Manual? 0 Play Time 00:30:20 Cumulative 141.6 hours Start 2026.07.05 @ 14:47:23 End 2026.07.05 @ 15:17:17 Sessions 1 Manual Loads 0 Difficulty Rogue Special Mode None Game No. 117 Rogue 117 Adventurer 0 Explorer 0 Win Type - Total 0 Types 0/0/0/0/0/0/0/0/0/0 Lore% 50 Gallery% 48 Achievement% 29 Wizard Run 0 Options --------- Layout 1 ASCII 0 Keyboard 1 Movement Numpad Keybinds 0 Fullscreen 1 Font 24/Smallcaps Map View 50x35 Zoom Use 0% Tactical HUD 1 Map Filters NONE Filters NONE Steam 1 RUN: 0188bbcb-f694-4a12-928e-0be4dafefb33